fUSD/lending_fUSD_20250112
["ID","MTS","AMOUNT","RATE_DAILY","PERIOD"]
[348601389,1736664668116,-500.0,0.00010894,2]
[348601390,1736664668126,-594.42,0.00010894,2]
[348601391,1736664668135,-151.86351427,0.00010894,2]
[348601392,1736664668143,-500.0,0.00010894,2]
[348601393,1736664668153,-537.5,0.00010894,2]
[348601394,1736664668162,-500.0,0.00010894,2]
[348601395,1736664668171,-535.6,0.00010894,2]
[348601396,1736664668180,-553.91,0.00010894,2]
[348601397,1736664668189,-247.17294009,0.00010894,2]
[348601398,1736664668199,-500.0,0.00010894,2]
[348601399,1736664668208,-602.95,0.00010894,2]
[348601400,1736664668217,-666.31,0.00010894,2]
[348601401,1736664668229,-950.48,0.00010894,2]
[348601402,1736664668238,-500.0,0.00010894,2]
[348601403,1736664668249,-500.0,0.00010894,2]
[348601404,1736664668258,-500.0,0.00010894,2]
[348601405,1736664668268,-638.03,0.00010894,2]
[348601406,1736664668282,-972.53,0.00010894,2]
[348601407,1736664668291,-594.76,0.00010894,2]
[348601408,1736664668301,-500.0,0.00010894,2]
[348601409,1736664668311,-500.0,0.00010894,2]
[348601410,1736664668321,-500.0,0.00010894,2]
[348601411,1736664668334,-56.98632203,0.00010894,2]
[348601412,1736664668969,-383.5086327,8.999e-05,2]
[348601413,1736664668981,-116.4913673,8.999e-05,2]
[348601414,1736664668990,-500.0,9.273e-05,2]
[348601415,1736664669000,-10.3351829,9.547e-05,2]
[348601416,1736664669011,-332.6633852,9.547e-05,2]
[348601417,1736664669022,-157.0014319,9.547e-05,2]
[348601418,1736664669032,-1360.35,9.797e-05,2]
[348601419,1736664669041,-500.0,0.0001,2]
[348601420,1736664669051,-500.0,0.00010027,2]
[348601421,1736664669060,-500.0,0.00010055,2]
[348601422,1736664669069,-1360.35,0.00010071,2]
[348601423,1736664669079,-500.0,0.00010082,2]
[348601424,1736664669088,-500.0,0.0001011,2]
[348601425,1736664669097,-500.0,0.00010137,2]
[348601426,1736664669106,-500.0,0.00010164,2]
[348601427,1736664669116,-500.0,0.00010192,2]
[348601428,1736664669125,-500.0,0.00010219,2]
[348601429,1736664669134,-500.0,0.00010247,2]
[348601430,1736664669143,-500.0,0.00010274,2]
[348601431,1736664669152,-500.0,0.00010301,2]
[348601432,1736664669161,-500.0,0.00010329,2]
[348601433,1736664669170,-1360.35,0.00010345,2]
[348601434,1736664669180,-500.0,0.00010892,2]
[348601435,1736664669190,-646.93367797,0.00010894,2]
[348601436,1736664669199,-500.0,0.00010894,2]
[348601437,1736664669208,-500.0,0.00010894,2]
[348601438,1736664669218,-794.4,0.00010894,2]
[348601439,1736664669227,-544.91,0.00010894,2]
[348601440,1736664669236,-500.0,0.00010894,2]
[348601441,1736664669246,-839.28,0.00010894,2]
[348601442,1736664669256,-500.0,0.00010894,2]
[348601443,1736664669265,-500.0,0.00010894,2]
[348601444,1736664669275,-643.83,0.00010894,2]
[348601445,1736664669284,-725.9,0.00010894,2]
[348601446,1736664669293,-500.0,0.00010894,2]
[348601447,1736664669302,-671.5,0.00010894,2]
[348601448,1736664669311,-566.3,0.00010894,2]
[348601449,1736664669320,-500.0,0.00010894,2]
[348601450,1736664669332,-500.0,0.00010894,2]
[348601451,1736664669342,-513.25,0.00010894,2]
[348601452,1736664669351,-500.0,0.00010894,2]
[348601453,1736664669361,-805.15,0.00010894,2]
[348601454,1736664669371,-500.0,0.00010894,2]
[348601455,1736664669380,-534.59,0.00010894,2]
[348601456,1736664669389,-766.63,0.00010894,2]
[348601457,1736664669399,-500.0,0.00010894,2]
[348601458,1736664669410,-500.0,0.00010894,2]
[348601459,1736664669419,-572.03,0.00010894,2]
[348601460,1736664669428,-609.26,0.00010894,2]
[348601461,1736664669437,-500.0,0.00010894,2]
[348601462,1736664669447,-500.0,0.00010894,2]
[348601463,1736664669456,-853.69,0.00010894,2]
[348601464,1736664669465,-828.29,0.00010894,2]
[348601465,1736664669475,-500.0,0.00010894,2]
[348601466,1736664669484,-500.0,0.00010894,2]
[348601467,1736664669493,-952.86,0.00010894,2]
[348601468,1736664669503,-1074.48,0.00010894,2]
[348601469,1736664669512,-500.0,0.00010894,2]
[348601470,1736664669521,-500.0,0.00010894,2]
[348601471,1736664669531,-604.49716216,0.00010894,2]
[348601472,1736664669540,-500.0,0.00010894,2]
[348601473,1736664669550,-500.0,0.00010894,2]
[348601474,1736664669559,-548.46,0.00010894,2]
[348601475,1736664669568,-547.4,0.00010894,2]
[348601476,1736664669578,-500.0,0.00010894,2]
[348601477,1736664669587,-500.0,0.00010894,2]
[348601478,1736664669596,-500.0,0.00010894,2]
[348601479,1736664669606,-675.88,0.00010894,2]
[348601480,1736664669615,-650.86,0.00010894,2]
[348601481,1736664669625,-500.0,0.00010894,2]
[348601482,1736664669634,-1193.16,0.00010894,2]
[348601483,1736664669643,-997.49,0.00010894,2]
[348601484,1736664669652,-1159.31,0.00010894,2]
[348601485,1736664669662,-848.9649144,0.00010894,2]
[348601486,1736664669683,-500.0,0.00010356,2]
[348601487,1736664669694,-285.4550856,0.00010894,2]
[348601488,1736664669704,-500.0,0.00010894,2]
[348601489,1736664669716,-500.0,0.00010894,2]
[348601490,1736664669726,-500.0,0.00010894,2]
[348601491,1736664669735,-500.0,0.00010894,2]
[348601492,1736664669745,-1269.21,0.00010895,2]
[348601493,1736664669755,-1539.8,0.00010895,2]
[348601494,1736664669764,-2152.61,0.00010895,2]
[348601495,1736664669773,-1641.08,0.00010895,2]
[348601496,1736664669782,-4400.86,0.00010895,2]
[348601497,1736664669792,-1857.78,0.00010895,2]
[348601498,1736664669801,-1640.18,0.00010895,2]
[348601499,1736664669810,-1754.42,0.00010895,2]
[348601500,1736664669819,-500.0,0.00010895,2]
[348601501,1736664669828,-931.4,0.00010895,2]
[348601502,1736664669837,-2541.55,0.00010895,2]
[348601503,1736664669846,-1064.63,0.00010895,2]
[348601504,1736664669855,-588.88,0.00010895,2]
[348601505,1736664669865,-500.0,0.00010895,2]
[348601506,1736664669874,-548.45,0.00010895,2]
[348601507,1736664669883,-744.22,0.00010895,2]
[348601508,1736664669892,-975.25,0.00010895,2]
[348601509,1736664669902,-547.93,0.00010895,2]
[348601510,1736664669911,-500.0,0.00010895,2]
[348601511,1736664669920,-500.0,0.00010895,2]
[348601512,1736664669929,-500.0,0.00010895,2]
[348601513,1736664669938,-887.09,0.00010895,2]
[348601514,1736664669947,-841.19,0.00010895,2]
[348601515,1736664669956,-517.67,0.00010895,2]
[348601516,1736664669966,-618.36,0.00010895,2]
[348601517,1736664669975,-514.96,0.00010895,2]
[348601518,1736664669985,-500.0,0.00010895,2]
[348601519,1736664669996,-787.46,0.00010895,2]
[348601520,1736664670005,-500.0,0.00010895,2]
[348601521,1736664670014,-817.76,0.00010895,2]
[348601522,1736664670023,-642.31,0.00010895,2]
[348601523,1736664670032,-571.13,0.00010895,2]
[348601524,1736664670041,-1433.18,0.00010895,2]
[348601525,1736664670051,-681.74,0.00010895,2]
[348601526,1736664670060,-500.0,0.00010895,2]
[348601527,1736664670070,-190.61718182,0.00010895,2]
[348601528,1736664670082,-309.38281818,0.00010895,2]
[348601529,1736664670091,-395.52146732,0.00010895,2]
[348601530,1736664670106,-285.83853268,0.00010895,2]
[348601531,1736664670115,-578.92,0.00010895,2]
[348601532,1736664670125,-276.65018902,0.00010895,2]
[348601533,1736664670136,-223.34981098,0.00010895,2]
[348601534,1736664670146,-500.0,0.00010895,2]
[348601535,1736664670155,-1081.82,0.00010895,2]
[348601536,1736664670164,-902.17,0.00010895,2]
[348601537,1736664670174,-605.76,0.00010895,2]
[348601538,1736664670185,-987.81,0.00010895,2]
[348601539,1736664670195,-968.71,0.00010895,2]
[348601540,1736664670206,-1422.22,0.00010895,2]
[348601541,1736664670217,-500.0,0.00010895,2]
[348601542,1736664670386,-1801.64,0.00010895,2]
[348601543,1736664670396,-991.52018902,0.00010895,2]
[348601544,1736664670407,-103.91981098,0.00010895,2]
[348601545,1736664670416,-500.0,0.00010895,2]
[348601546,1736664670425,-3008.74,0.00010895,2]
[348601547,1736664670434,-532.72,0.00010895,2]
[348601548,1736664670443,-1648.63,0.00010895,2]
[348601549,1736664670452,-759.39,0.00010895,2]
[348601550,1736664670462,-4646.92,0.00010895,2]
[348601551,1736664670471,-500.0,0.00010895,2]
[348601552,1736664670480,-500.0,0.00010895,2]
[348601553,1736664670489,-1847.16,0.00010895,2]
[348601554,1736664670499,-1022.78,0.00010895,2]
[348601555,1736664670508,-500.0,0.00010895,2]
[348601556,1736664670518,-2692.34,0.00010895,2]
[348601557,1736664670527,-1315.25,0.00010895,2]
[348601558,1736664670536,-7347.54,0.00010895,2]
[348601559,1736664670545,-2014.49,0.00010895,2]
[348601560,1736664670554,-500.0,0.00010895,2]
[348601561,1736664670564,-1247.03,0.00010895,2]
[348601562,1736664670573,-1000.0,0.00010895,2]
[348601563,1736664670582,-1027.93,0.00010895,2]
[348601564,1736664670591,-1392.43,0.00010895,2]
[348601565,1736664670600,-2287.88,0.00010895,2]
[348601566,1736664670610,-888.82,0.00010895,2]
[348601567,1736664670619,-500.0,0.00010895,2]
[348601568,1736664670628,-1223.56,0.00010895,2]
[348601569,1736664670639,-2751.8,0.00010895,2]
[348601570,1736664670648,-316.82365579,0.000109,2]
[348601571,1736664670658,-1001.2249199,0.000109,2]
[348601572,1736664670668,-1900.0,0.000109,3]
[348601573,1736664670677,-1851.31966911,0.00010907,2]
[348601574,1736664670687,-2595.68842146,0.00010907,2]
[348601575,1736664670696,-1517.85,0.00010917,2]
[348601576,1736664670705,-1831.45,0.00010917,2]
[348601577,1736664670715,-1262.15,0.00010917,2]
[348601578,1736664670725,-2965.78,0.00010917,2]
[348601579,1736664670734,-1672.59,0.00010917,2]
[348601580,1736664670744,-3495.27,0.00010917,2]
[348601581,1736664670753,-152.0,0.00010931,4]
[348601582,1736664670763,-179.4385813,0.00010931,5]
[348601583,1736664670773,-1058.0,0.00010944,2]
[348601584,1736664670782,-999.0,0.00010958,2]
[348601585,1736664670791,-500.0,0.00010958,2]
[348601586,1736664670800,-7500.0,0.00010958,2]
[348601587,1736664670809,-7500.0,0.00010958,2]
[348601588,1736664670818,-7500.0,0.00010958,2]
[348601589,1736664670828,-7500.0,0.00010958,2]
[348601590,1736664670837,-7500.0,0.00010958,2]
[348601591,1736664670847,-7500.0,0.00010958,2]
[348601592,1736664670857,-7500.0,0.00010958,2]
[348601593,1736664670866,-7500.0,0.00010958,2]
[348601594,1736664670876,-7500.0,0.00010958,2]
[348601595,1736664670886,-7500.0,0.00010958,2]
[348601596,1736664670896,-4457.42899844,0.00010958,2]
[348601597,1736664670905,-500.0,0.00010959,2]
[348601598,1736664670915,-2000.0,0.00010959,2]
[348601599,1736664670924,-2000.0,0.00010959,2]
[348601600,1736664670934,-200.0,0.00010959,2]
[348601601,1736664670943,-151.0,0.00010959,2]
[348601602,1736664670952,-215.576147,0.00010959,2]
[348601603,1736664670962,-24.13331955,0.00010959,2]
[348601604,1736664670978,-125.86668045,0.00010959,2]
[348601605,1736664670988,-2245.15,0.00010959,2]
[348601606,1736664670998,-2771.3594207,0.00010967,2]
[348601607,1736664671008,-915.8,0.00010967,2]
[348601608,1736664671017,-500.0,0.00010967,2]
[348601609,1736664671027,-1218.5,0.00010967,2]
[348601610,1736664671036,-10950.57545103,0.00010967,2]
[348601611,1736664671046,-2827.62955187,0.00010967,2]
[348601612,1736664671055,-629.85990951,0.00010967,2]
[348601613,1736664671065,-11074.31804059,0.00010968,2]
[348601614,1736664671074,-2771.3594207,0.00010968,2]
[348601615,1736664671084,-200.0,0.00010968,2]
[348601616,1736664671093,-165146.73182774,0.00010968,2]
[348601617,1736664674297,242.63422608,0.0002,120]
[348601619,1736665414284,294.0,0.000171,60]
[348601620,1736665521580,930.1,8.219e-05,2]
[348602060,1736665825107,1422.0,0.0001712,60]
[348602069,1736665832294,-300.0,8.998e-05,2]
[348602070,1736665832303,-300.0,8.998e-05,2]
[348602071,1736665832312,-2145.55,8.999e-05,2]
[348602072,1736665832321,-955.82,8.999e-05,2]
[348602073,1736665832525,-858.7,8.999e-05,2]
[348602074,1736665832536,-790.36,8.999e-05,2]
[348602075,1736665832545,-500.0,8.999e-05,2]
[348602076,1736665832555,-1194.31,8.999e-05,2]
[348602077,1736665832563,-611.27,8.999e-05,2]
[348602078,1736665832572,-526.3,9.125e-05,2]
[348602079,1736665832581,-1000.0,9.131e-05,2]
[348602080,1736665832590,-150.0,9.161e-05,2]
[348602081,1736665832599,-209.41,9.162e-05,2]
[348602082,1736665832609,-250.0,9.239e-05,2]
[348602083,1736665832618,-2145.55,9.273e-05,2]
[348602084,1736665832626,-955.82,9.273e-05,2]
[348602085,1736665832635,-858.7,9.273e-05,2]
[348602086,1736665832644,-790.36,9.273e-05,2]
[348602087,1736665832653,-500.0,9.273e-05,2]
[348602088,1736665832661,-1194.31,9.273e-05,2]
[348602089,1736665832670,-2145.55,9.547e-05,2]
[348602090,1736665832679,-955.82,9.547e-05,2]
[348602091,1736665832688,-858.7,9.547e-05,2]
[348602092,1736665832697,-790.36,9.547e-05,2]
[348602093,1736665832706,-500.0,9.547e-05,2]
[348602094,1736665832715,-1194.31,9.547e-05,2]
[348602095,1736665832723,-440.1534,9.781e-05,2]
[348602096,1736665832732,-1190.3,9.795e-05,2]
[348602097,1736665832741,-1075.14,9.795e-05,2]
[348602098,1736665832750,-1297.28,9.795e-05,2]
[348602099,1736665832759,-894.02,9.795e-05,2]
[348602100,1736665832768,-2100.76,9.795e-05,2]
[348602101,1736665832778,-1184.75,9.795e-05,2]
[348602102,1736665832787,-2521.96,9.795e-05,2]
[348602103,1736665832796,-3302.36,9.795e-05,2]
[348602104,1736665832805,-500.0,9.795e-05,2]
[348602105,1736665832814,-1547.07,9.795e-05,2]
[348602106,1736665832823,-500.0,9.796e-05,2]
[348602107,1736665832832,-500.0,9.796e-05,2]
[348602108,1736665832840,-500.0,9.796e-05,2]
[348602109,1736665832849,-500.0,9.796e-05,2]
[348602110,1736665832859,-500.0,9.796e-05,2]
[348602111,1736665832867,-500.0,9.796e-05,2]
[348602112,1736665832876,-527.04,9.796e-05,2]
[348602113,1736665832885,-157.08177538,9.796e-05,2]
[348602114,1736665832894,-500.0,9.796e-05,2]
[348602115,1736665832903,-500.0,9.796e-05,2]
[348602116,1736665832912,-500.0,9.796e-05,2]
[348602117,1736665832922,-500.0,9.796e-05,2]
[348602118,1736665832931,-500.0,9.796e-05,2]
[348602119,1736665832940,-500.0,9.796e-05,2]
[348602120,1736665832949,-500.0,9.796e-05,2]
[348602121,1736665832958,-500.0,9.796e-05,2]
[348602122,1736665832967,-500.0,9.796e-05,2]
[348602123,1736665832976,-500.0,9.796e-05,2]
[348602124,1736665832985,-500.0,9.796e-05,2]
[348602125,1736665832994,-247.17294009,9.796e-05,2]
[348602126,1736665833004,-500.0,9.796e-05,2]
[348602127,1736665833019,-500.0,9.796e-05,2]
[348602128,1736665833030,-500.0,9.796e-05,2]
[348602129,1736665833040,-500.0,9.796e-05,2]
[348602130,1736665833050,-516.47,9.796e-05,2]
[348602131,1736665833060,-500.0,9.796e-05,2]
[348602132,1736665833070,-500.0,9.796e-05,2]
[348602133,1736665833080,-503.30688691,9.796e-05,2]
[348602134,1736665833090,-500.0,9.796e-05,2]
[348602135,1736665833101,-500.0,9.796e-05,2]
[348602136,1736665833111,-707.14,9.796e-05,2]
[348602137,1736665833120,-718.69,9.796e-05,2]
[348602138,1736665833130,-500.0,9.796e-05,2]
[348602139,1736665833139,-500.0,9.796e-05,2]
[348602140,1736665833149,-500.0,9.796e-05,2]
[348602141,1736665833158,-551.61,9.796e-05,2]
[348602142,1736665833168,-500.0,9.796e-05,2]
[348602143,1736665833177,-502.25681925,9.796e-05,2]
[348602144,1736665833187,-500.0,9.796e-05,2]
[348602145,1736665833196,-759.19,9.796e-05,2]
[348602146,1736665833205,-563.47,9.796e-05,2]
[348602147,1736665833215,-500.0,9.796e-05,2]
[348602148,1736665833224,-500.0,9.796e-05,2]
[348602149,1736665833234,-500.0,9.796e-05,2]
[348602150,1736665833243,-500.0,9.796e-05,2]
[348602151,1736665833253,-500.0,9.796e-05,2]
[348602152,1736665833263,-500.0,9.796e-05,2]
[348602153,1736665833273,-500.0,9.796e-05,2]
[348602154,1736665833282,-500.0,9.796e-05,2]
[348602155,1736665833292,-526.41,9.796e-05,2]
[348602156,1736665833302,-500.0,9.796e-05,2]
[348602157,1736665833311,-500.0,9.796e-05,2]
[348602158,1736665833320,-494.778656,9.796e-05,2]
[348602159,1736665833330,-500.0,9.796e-05,2]
[348602160,1736665833339,-500.0,9.796e-05,2]
[348602161,1736665833348,-500.0,9.796e-05,2]
[348602162,1736665833357,-500.0,9.796e-05,2]
[348602163,1736665833367,-500.0,9.796e-05,2]
[348602164,1736665833376,-501.67492681,9.796e-05,2]
[348602165,1736665833386,-502.46,9.796e-05,2]
[348602166,1736665833395,-500.0,9.796e-05,2]
[348602167,1736665833404,-817.6,9.796e-05,2]
[348602168,1736665833414,-730.83,9.796e-05,2]
[348602169,1736665833423,-500.0,9.796e-05,2]
[348602170,1736665833433,-500.0,9.796e-05,2]
[348602171,1736665833442,-500.0,9.796e-05,2]
[348602172,1736665833451,-500.0,9.796e-05,2]
[348602173,1736665833461,-500.0,9.796e-05,2]
[348602174,1736665833470,-639.07,9.796e-05,2]
[348602175,1736665833480,-552.82,9.796e-05,2]
[348602176,1736665833489,-3779.65,9.796e-05,2]
[348602177,1736665833499,-601.31,9.796e-05,2]
[348602178,1736665833508,-500.0,9.796e-05,2]
[348602179,1736665833518,-711.2,9.796e-05,2]
[348602180,1736665833527,-500.0,9.796e-05,2]
[348602181,1736665833537,-500.0,9.796e-05,2]
[348602182,1736665833547,-500.0,9.796e-05,2]
[348602183,1736665833557,-500.0,9.796e-05,2]
[348602184,1736665833566,-500.0,9.796e-05,2]
[348602185,1736665833575,-600.1173996,9.796e-05,2]
[348602186,1736665833608,-110.1026004,9.796e-05,2]
[348602187,1736665833617,-352.8773896,9.796e-05,2]
[348602188,1736665833653,-147.1226104,9.796e-05,2]
[348602189,1736665833662,-225.8173896,9.796e-05,2]
[348602190,1736665833674,-274.1826104,9.796e-05,2]
[348602191,1736665833684,-551.37,9.796e-05,2]
[348602192,1736665833694,-645.37,9.796e-05,2]
[348602193,1736665833703,-94.59339275,9.796e-05,2]
[348602194,1736665838326,-611.27,9.273e-05,2]
[348602195,1736665838335,-611.27,9.547e-05,2]
[348602196,1736665838344,-478.67660725,9.796e-05,2]
[348602197,1736665838353,-500.0,9.796e-05,2]
[348602198,1736665838362,-500.0,9.796e-05,2]
[348602199,1736665838371,-500.0,9.796e-05,2]
[348602200,1736665838380,-500.0,9.796e-05,2]
[348602201,1736665838389,-500.0,9.796e-05,2]
[348602202,1736665838398,-684.45,9.796e-05,2]
[348602203,1736665838407,-650.64,9.796e-05,2]
[348602204,1736665838416,-500.0,9.796e-05,2]
[348602205,1736665838425,-500.0,9.796e-05,2]
[348602206,1736665838435,-500.0,9.796e-05,2]
[348602207,1736665838444,-676.56,9.796e-05,2]
[348602208,1736665838453,-696.67,9.796e-05,2]
[348602209,1736665838463,-775.37,9.796e-05,2]
[348602210,1736665838472,-878.65,9.796e-05,2]
[348602211,1736665838481,-500.0,9.796e-05,2]
[348602212,1736665838490,-500.0,9.796e-05,2]
[348602213,1736665838499,-500.0,9.796e-05,2]
[348602215,1736665838508,-437.07918207,9.796e-05,2]
[348602217,1736665838520,-62.92081793,9.796e-05,2]
[348602219,1736665838529,-500.0,9.796e-05,2]
[348602221,1736665838540,-500.0,9.796e-05,2]
[348602223,1736665838549,-500.0,9.796e-05,2]
[348602225,1736665838558,-57.80183005,9.796e-05,2]
[348602230,1736665838597,-1141.99816995,9.796e-05,2]
[348602232,1736665838606,-168.33403177,9.796e-05,2]
[348602234,1736665838615,-584.06,9.796e-05,2]
[348602236,1736665838624,-1055.19,9.796e-05,2]
[348602237,1736665838633,-500.0,9.796e-05,2]
[348602239,1736665838643,-1021.63,9.796e-05,2]
[348602241,1736665838652,-852.08,9.796e-05,2]
[348602243,1736665838661,-997.09,9.796e-05,2]
[348602245,1736665838671,-971.95,9.796e-05,2]
[348602247,1736665838680,-500.0,9.796e-05,2]
[348602249,1736665838689,-630.53,9.796e-05,2]
[348602251,1736665838698,-500.0,9.796e-05,2]
[348602253,1736665838707,-511.56,9.796e-05,2]
[348602255,1736665838716,-1522.96,9.796e-05,2]
[348602257,1736665838724,-500.0,9.796e-05,2]
[348602259,1736665838734,-500.0,9.796e-05,2]
[348602261,1736665838742,-641.02,9.796e-05,2]
[348602263,1736665838751,-1558.16,9.796e-05,2]
[348602265,1736665838760,-500.0,9.796e-05,2]
[348602267,1736665838770,-1414.32,9.796e-05,2]
[348602269,1736665838779,-500.0,9.796e-05,2]
[348602271,1736665838788,-1949.38,9.796e-05,2]
[348602273,1736665838797,-500.0,9.796e-05,2]
[348602275,1736665838807,-500.0,9.796e-05,2]
[348602276,1736665838816,-727.02,9.796e-05,2]
[348602277,1736665838825,-500.0,9.796e-05,2]
[348602278,1736665838834,-494.34041915,9.797e-05,2]
[348602279,1736665838843,-500.0,9.797e-05,2]
[348602280,1736665838852,-500.0,9.797e-05,2]
[348602281,1736665838862,-501.29815844,9.797e-05,2]
[348602282,1736665838872,-500.78941608,9.797e-05,2]
[348602283,1736665838882,-501.10091185,9.797e-05,2]
[348602284,1736665838891,-500.82273157,9.797e-05,2]
[348602285,1736665838900,-500.52989539,9.797e-05,2]
[348602286,1736665838910,-501.50276775,9.797e-05,2]
[348602287,1736665838919,-500.60806713,9.797e-05,2]
[348602288,1736665838929,-501.34813119,9.797e-05,2]
[348602289,1736665838938,-501.0619466,9.797e-05,2]
[348602290,1736665838947,-500.0,9.797e-05,2]
[348602291,1736665838957,-500.75602364,9.797e-05,2]
[348602292,1736665838968,-501.19867662,9.797e-05,2]
[348602293,1736665838977,-501.30118522,9.797e-05,2]
[348602294,1736665838986,-501.01112983,9.797e-05,2]
[348602295,1736665838995,-500.87405528,9.797e-05,2]
[348602296,1736665839004,-510.37,9.797e-05,2]
[348602297,1736665839014,-500.0,9.797e-05,2]
[348602298,1736665839023,-652.62,9.797e-05,2]
[348602299,1736665839033,-500.0,9.797e-05,2]
[348602300,1736665839043,-680.39,9.797e-05,2]
[348602301,1736665839052,-529.33,9.797e-05,2]
[348602302,1736665839061,-500.0,9.797e-05,2]
[348602303,1736665839071,-796.75,9.797e-05,2]
[348602304,1736665839081,-500.0,9.797e-05,2]
[348602305,1736665839092,-500.0,9.797e-05,2]
[348602306,1736665839103,-500.0,9.797e-05,2]
[348602307,1736665839112,-500.0,9.797e-05,2]
[348602308,1736665839121,-893.2,9.797e-05,2]
[348602309,1736665839131,-502.81,9.797e-05,2]
[348602310,1736665839139,-817.44,9.797e-05,2]
[348602311,1736665839148,-500.0,9.797e-05,2]
[348602312,1736665839157,-908.22,9.797e-05,2]
[348602313,1736665839166,-500.0,9.797e-05,2]
[348602314,1736665839175,-500.0,9.797e-05,2]
[348602315,1736665839185,-508.33567904,9.797e-05,2]
[348602316,1736665839195,-673.76,9.797e-05,2]
[348602317,1736665839204,-500.0,9.797e-05,2]
[348602318,1736665839213,-500.0,9.797e-05,2]
[348602319,1736665839222,-3578.8,9.797e-05,2]
[348602320,1736665839231,-1269.78,9.797e-05,2]
[348602321,1736665839242,-2607.26,9.797e-05,2]
[348602322,1736665839251,-8563.17,9.797e-05,2]
[348602323,1736665839260,-500.0,9.797e-05,2]
[348602324,1736665839269,-848.35,9.797e-05,2]
[348602325,1736665839279,-1056.45305092,9.797e-05,2]
[348602327,1736665840386,-106.94694908,9.797e-05,2]
[348602328,1736665840395,-3392.26348976,9.797e-05,2]
[348602332,1736665843240,-275.11651024,9.797e-05,2]
[348602333,1736665843249,-500.0,9.797e-05,2]
[348602334,1736665843259,-1330.85602999,9.797e-05,2]
[348602335,1736665843270,-882.91397001,9.797e-05,2]
[348602336,1736665843279,-17.19177578,9.797e-05,2]
[348602337,1736665843346,-317.92,9.797e-05,2]
[348602338,1736665843366,-1311.6373174,9.797e-05,2]
[348602339,1736665843393,-547.66090682,9.797e-05,2]
[348602340,1736665843402,-428.26909318,9.797e-05,2]
[348602341,1736665843498,-2834.26090682,9.797e-05,2]
[348602342,1736665843507,-500.0,9.797e-05,2]
[348602343,1736665843516,-5284.68,9.797e-05,2]
[348602344,1736665843526,-1903.88,9.797e-05,2]
[348602345,1736665843535,-1548.15,9.797e-05,2]
[348602346,1736665843545,-500.0,9.797e-05,2]
[348602347,1736665843554,-1328.96,9.797e-05,2]
[348602348,1736665843563,-1314.7,9.797e-05,2]
[348602349,1736665843572,-3323.35,9.797e-05,2]
[348602350,1736665843581,-866.63,9.797e-05,2]
[348602351,1736665843591,-1470.88,9.797e-05,2]
[348602352,1736665843600,-1899.49,9.797e-05,2]
[348602353,1736665843609,-2255.89,9.797e-05,2]
[348602354,1736665843618,-500.0,9.797e-05,2]
[348602355,1736665843628,-1201.32,9.797e-05,2]
[348602356,1736665843636,-1425.35,9.797e-05,2]
[348602357,1736665843646,-573.34,9.797e-05,2]
[348602358,1736665843655,-500.0,9.797e-05,2]
[348602359,1736665843665,-1445.02,9.797e-05,2]
[348602360,1736665843674,-500.0,9.797e-05,2]
[348602361,1736665843683,-500.0,9.797e-05,2]
[348602362,1736665843692,-832.36,9.797e-05,2]
[348602363,1736665843701,-988.31,9.797e-05,2]
[348602364,1736665843711,-1366.82,9.797e-05,2]
[348602365,1736665843720,-952.54,9.797e-05,2]
[348602366,1736665843729,-505.00208755,9.797e-05,2]
[348602367,1736665843738,-1217.86,9.798e-05,2]
[348602368,1736665843747,-969.44,9.798e-05,2]
[348602369,1736665843756,-873.61,9.798e-05,2]
[348602370,1736665843765,-1828.46,9.798e-05,2]
[348602371,1736665843774,-1084.21,9.798e-05,2]
[348602372,1736665843783,-500.0,9.798e-05,2]